fUSD/lending_fUSD_20251117
["ID","MTS","AMOUNT","RATE_DAILY","PERIOD"]
[394216468,1763386233433,-472.01807675,0.0003495,5]
[394216469,1763386233443,-502.84272327,0.0003495,5]
[394216470,1763386233453,-503.60955395,0.0003495,5]
[394216471,1763386233464,-403.1044147,0.0003495,5]
[394216472,1763386233473,-501.74831754,0.00034973,5]
[394216473,1763386233483,-500.0,0.00034973,5]
[394216474,1763386233493,-500.0,0.00034973,5]
[394216475,1763386233503,-11111.0,0.00035,120]
[394216476,1763386233513,-150.0,0.00035025,7]
[394216477,1763386233523,-150.0,0.00035032,7]
[394216478,1763386233534,-150.0,0.00035061,7]
[394216479,1763386233544,-150.0,0.00035061,7]
[394216480,1763386233554,-150.0,0.00035061,7]
[394216481,1763386233564,-150.0,0.00035115,7]
[394216482,1763386233573,-150.0,0.00035115,7]
[394216483,1763386233582,-9325.70953923,0.00035145,2]
[394216484,1763386233592,-150.0,0.00035146,7]
[394216485,1763386233601,-150.0,0.00035178,7]
[394216486,1763386233610,-150.0,0.00035206,7]
[394216487,1763386233620,-150.0,0.00035213,7]
[394216488,1763386233630,-150.0,0.00035251,7]
[394216489,1763386233640,-150.0,0.00035297,7]
[394216490,1763386233649,-150.0,0.00035315,7]
[394216491,1763386233660,-150.0,0.00035325,7]
[394216492,1763386233669,-166.66,0.0003535,30]
[394216493,1763386233679,-869.92,0.00035351,5]
[394216494,1763386233691,-150.0,0.00035357,7]
[394216495,1763386233700,-150.0,0.00035366,7]
[394216496,1763386233712,-150.0,0.00035387,7]
[394216497,1763386233722,-150.0,0.00035387,7]
[394216498,1763386233731,-150.0,0.00035442,7]
[394216499,1763386233742,-150.0,0.00035471,7]
[394216500,1763386233752,-150.0,0.00035478,7]
[394216501,1763386233761,-150.0,0.00035518,7]
[394216502,1763386233772,-150.0,0.00035569,7]
[394216503,1763386233782,-150.0,0.00035569,7]
[394216504,1763386233791,-150.0,0.00035569,7]
[394216505,1763386233801,-150.0,0.00035569,7]
[394216506,1763386233811,-200.0,0.0003558,2]
[394216507,1763386233820,-150.0,0.00035618,7]
[394216508,1763386233830,-999.0,0.0003563,3]
[394216509,1763386233840,-150.0,0.0003566,7]
[394216510,1763386233850,-150.0,0.0003566,7]
[394216511,1763386233859,-150.0,0.00035671,7]
[394216512,1763386233868,-1175.27,0.00035713,120]
[394216513,1763386233878,-250.0,0.00035739,2]
[394216514,1763386233889,-214.35,0.00035741,2]
[394216515,1763386233898,-150.0,0.0003575,7]
[394216516,1763386233908,-150.0,0.00035764,7]
[394216517,1763386233918,-150.0,0.00035781,7]
[394216518,1763386233928,-150.0,0.00035823,7]
[394216519,1763386233937,-150.0,0.00035823,7]
[394216520,1763386233947,-150.0,0.00035823,7]
[394216521,1763386233958,-150.0,0.00035841,7]
[394216522,1763386233967,-150.0,0.00035887,7]
[394216523,1763386233978,-167.89651,0.00035888,30]
[394216524,1763386233988,-150.0,0.00035911,7]
[394216525,1763386233998,-150.0,0.00035932,7]
[394216526,1763386234007,-150.0,0.00035932,7]
[394216527,1763386234017,-150.0,0.00035975,7]
[394216528,1763386234028,-150.0,0.00035992,7]
[394216529,1763386234039,-1852.42,0.00035995,2]
[394216530,1763386234048,-256.59550827,0.00036,2]
[394216531,1763386234064,-749.19449173,0.00036,2]
[394216532,1763386234075,-11655.52134342,0.00036,120]
[394216533,1763386234084,-150.0,0.00036023,7]
[394216534,1763386234094,-166.66,0.00036037,30]
[394216535,1763386234105,-150.0,0.00036058,7]
[394216536,1763386234114,-150.0,0.00036077,7]
[394216537,1763386234123,-167.89651,0.00036088,30]
[394216538,1763386234132,-150.0,0.000361,2]
[394216539,1763386234141,-150.0,0.00036113,7]
[394216540,1763386234150,-150.0,0.00036128,7]
[394216541,1763386234160,-150.0,0.00036204,7]
[394216542,1763386234170,-150.0,0.00036204,7]
[394216543,1763386234179,-150.0,0.00036204,7]
[394216544,1763386234189,-150.0,0.00036204,7]
[394216545,1763386234198,-150.0,0.00036204,7]
[394216546,1763386234208,-150.0,0.00036204,7]
[394216547,1763386234217,-150.0,0.00036204,7]
[394216548,1763386234226,-150.0,0.00036204,7]
[394216549,1763386234236,-150.0,0.0003628,7]
[394216550,1763386234245,-167.89651,0.00036288,30]
[394216551,1763386234255,-150.0,0.00036295,7]
[394216552,1763386234264,-216.93236137,0.00036315,2]
[394216553,1763386234273,-150.0,0.00036331,7]
[394216554,1763386234283,-150.0,0.00036351,7]
[394216555,1763386234292,-258.005,0.00036352,7]
[394216556,1763386234302,-150.0,0.00036386,7]
[394216557,1763386234311,-150.0,0.00036416,7]
[394216558,1763386234321,-150.0,0.00036433,7]
[394216559,1763386234330,-150.0,0.00036476,7]
[394216560,1763386234339,-150.0,0.00036476,7]
[394216561,1763386234349,-216.93236137,0.0003648,2]
[394216562,1763386234358,-167.89651,0.00036488,30]
[394216563,1763386234367,-500.0,0.00036488,30]
[394216564,1763386234376,-150.0,0.00036493,2]
[394216565,1763386234385,-150.0,0.00036493,2]
[394216566,1763386234395,-150.0,0.00036497,7]
[394216567,1763386234404,-150.0,0.00036522,7]
[394216568,1763386234413,-150.0,0.00036541,2]
[394216569,1763386234422,-150.0,0.00036567,7]
[394216570,1763386234431,-500.0,0.0003658,5]
[394216571,1763386234440,-500.0,0.0003658,5]
[394216572,1763386234450,-501.0431648,0.0003658,5]
[394216573,1763386234459,-500.0,0.0003658,5]
[394216574,1763386234468,-490.58197567,0.0003658,5]
[394216575,1763386234478,-500.46051516,0.0003658,5]
[394216576,1763386234487,-499.8492798,0.0003658,5]
[394216577,1763386234498,-501.3549135,0.0003658,5]
[394216578,1763386234507,-500.0,0.0003658,5]
[394216579,1763386234516,-500.0,0.0003658,5]
[394216580,1763386234526,-501.01141393,0.0003658,5]
[394216581,1763386234535,-150.0,0.00036585,7]
[394216582,1763386234544,-150.0,0.00036585,7]
[394216583,1763386234554,-150.0,0.00036585,7]
[394216584,1763386234563,-500.0,0.000366,5]
[394216585,1763386234572,-150.0,0.00036628,7]
[394216586,1763386234581,-150.0,0.00036644,7]
[394216587,1763386234591,-150.0,0.00036658,7]
[394216588,1763386234600,-167.89651,0.00036688,30]
[394216589,1763386234609,-1005.79,0.0003672,2]
[394216590,1763386234618,-150.0,0.00036738,7]
[394216591,1763386234628,-150.0,0.00036749,7]
[394216592,1763386234637,-150.0,0.00036749,7]
[394216593,1763386234646,-150.0,0.0003679,7]
[394216594,1763386234656,-2508.91,0.00036821,2]
[394216595,1763386234665,-150.58682313,0.00036833,5]
[394216596,1763386234675,-150.0,0.00036839,7]
[394216597,1763386234683,-150.0,0.00036839,7]
[394216598,1763386234693,-150.0,0.00036839,7]
[394216599,1763386234702,-150.0,0.00036839,7]
[394216600,1763386234714,-244.17,0.0003687,14]
[394216601,1763386234723,-1635.31,0.00036887,2]
[394216602,1763386234733,-167.89651,0.00036888,30]
[394216603,1763386234742,-559.655,0.00036888,7]
[394216604,1763386234752,-150.0,0.0003689,7]
[394216605,1763386234762,-216.93236137,0.00036903,2]
[394216606,1763386234772,-150.0,0.0003693,7]
[394216607,1763386234782,-150.0,0.00036937,7]
[394216608,1763386234791,-204.25,0.00036937,5]
[394216609,1763386234801,-150.0,0.00036966,7]
[394216610,1763386234811,-150.0,0.00037021,7]
[394216611,1763386234821,-150.0,0.00037021,7]
[394216612,1763386234831,-150.0,0.00037043,7]
[394216613,1763386234840,-150.0,0.00037051,7]
[394216614,1763386234850,-150.0,0.00037053,2]
[394216615,1763386234861,-150.0,0.00037084,7]
[394216616,1763386234871,-167.89651,0.00037088,30]
[394216617,1763386234881,-150.0,0.00037093,7]
[394216618,1763386234891,-150.0,0.00037111,7]
[394216619,1763386234901,-150.0,0.00037117,2]
[394216620,1763386234910,-216.93236137,0.00037125,2]
[394216621,1763386234920,-150.0,0.00037157,7]
[394216622,1763386234930,-150.0,0.00037195,7]
[394216623,1763386234940,-181.6161309,0.000372,120]
[394216624,1763386234950,-181.61613088,0.000372,120]
[394216625,1763386234963,-181.61613088,0.000372,120]
[394216626,1763386234972,-150.0,0.00037202,7]
[394216627,1763386234983,-150.0,0.0003723,7]
[394216628,1763386234994,-874.51,0.00037245,5]
[394216629,1763386235004,-150.0,0.00037263,7]
[394216630,1763386235013,-167.89651,0.00037288,30]
[394216631,1763386235024,-150.0,0.00037293,7]
[394216632,1763386235034,-150.0,0.00037293,7]
[394216633,1763386235044,-416.78,0.00037315,2]
[394216634,1763386235054,-416.78,0.00037315,2]
[394216635,1763386235065,-416.15,0.00037315,2]
[394216636,1763386235075,-150.0,0.00037347,7]
[394216637,1763386235084,-150.0,0.00037347,7]
[394216638,1763386235094,-150.0,0.00037347,7]
[394216639,1763386235103,-150.0,0.00037377,7]
[394216640,1763386235112,-416.78,0.00037378,2]
[394216641,1763386235122,-150.0,0.00037378,2]
[394216642,1763386235131,-150.0,0.00037378,2]
[394216643,1763386235140,-150.0,0.00037384,7]
[394216644,1763386235149,-945.80595812,0.0003744,2]
[394216645,1763386235163,-59.98404188,0.0003744,2]
[394216646,1763386235173,-150.0,0.00037474,7]
[394216647,1763386235182,-150.0,0.00037474,7]
[394216648,1763386235191,-150.0,0.00037474,7]
[394216649,1763386235202,-167.89651,0.00037488,30]
[394216650,1763386235215,-150.0,0.000375,7]
[394216651,1763386235225,-150.0,0.00037523,7]
[394216652,1763386235234,-216.93236137,0.00037525,2]
[394216653,1763386235244,-150.0,0.00037565,7]
[394216654,1763386235253,-150.0,0.00037565,7]
[394216655,1763386235263,-150.0,0.00037601,7]
[394216656,1763386235273,-216.93236137,0.00037651,2]
[394216657,1763386235283,-150.0,0.00037652,7]
[394216658,1763386235293,-150.0,0.00037656,7]
[394216659,1763386235304,-150.0,0.0003767,7]
[394216660,1763386235314,-150.0,0.00037686,7]
[394216661,1763386235324,-167.89651,0.00037688,30]
[394216662,1763386235334,-150.0,0.00037728,7]
[394216663,1763386235345,-150.0,0.00037747,7]
[394216664,1763386235355,-150.0,0.00037792,7]
[394216665,1763386235364,-162.82304399,0.00037794,2]
[394216666,1763386235374,-189.19952371,0.00037794,15]
[394216667,1763386235383,-1000.0,0.00037794,2]
[394216668,1763386235393,-234.7706,0.00037794,2]
[394216669,1763386235402,-31022.8862,0.00037794,2]
[394216670,1763386235411,-1000.0,0.00037794,2]
[394216671,1763386235421,-202.48329973,0.00037794,2]
[394216701,1763386238599,-447.08925094,0.00030841,2]
[394216860,1763386240168,-666.06074906,0.00030841,2]
[394216862,1763386240179,-575.0,0.00034832,2]
[394216864,1763386240189,-2297.51670027,0.00037794,2]
[394216866,1763386240198,-2282.15257534,0.00037803,2]
[394216868,1763386240207,-150.0,0.00037805,7]
[394216870,1763386240220,-2560.28129376,0.00037807,2]
[394216872,1763386240229,-150.0,0.00037816,7]
[394216874,1763386240238,-1252.64346373,0.00037829,2]
[394216876,1763386240251,-1029.50911154,0.00037829,2]
[394216878,1763386240260,-200.0,0.00037831,10]
[394216880,1763386240269,-170.49088846,0.00037832,2]
[394216888,1763386240334,-826.85811154,0.00037832,2]
[394216890,1763386240343,-1604.0,0.00037832,2]
[394216892,1763386240352,-400.575,0.00037832,2]
[394216894,1763386240362,-2560.28129369,0.00037832,2]
[394216896,1763386240371,-150.0,0.00037837,7]
[394216898,1763386240380,-150.0,0.00037837,7]
[394216900,1763386240389,-2282.15257527,0.00037855,2]
[394216902,1763386240398,-150.0,0.00037856,7]
[394216904,1763386240407,-2560.28129369,0.00037858,2]
[394216906,1763386240416,-1220.42775844,0.00037863,30]
[394216908,1763386240426,-2282.15257527,0.00037881,2]
[394216910,1763386240435,-203.51,0.00037881,14]
[394216912,1763386240444,-151.0,0.00037881,2]
[394216914,1763386240453,-151.0,0.00037881,2]
[394216916,1763386240463,-151.0,0.00037881,2]
[394216918,1763386240474,-151.0,0.00037881,2]
[394216920,1763386240483,-151.0,0.00037881,2]
[394216922,1763386240492,-151.0,0.00037881,2]
[394216924,1763386240502,-151.0,0.00037881,2]
[394216926,1763386240511,-151.0,0.00037881,2]
[394216929,1763386240521,-151.0,0.00037881,2]
[394216930,1763386240530,-151.0,0.00037881,2]
[394216932,1763386240539,-257.54438633,0.00037881,2]
[394216934,1763386240548,-151.0,0.00037881,2]
[394216937,1763386240558,-151.0,0.00037881,2]
[394216939,1763386240568,-151.0,0.00037881,2]
[394216941,1763386240576,-151.0,0.00037881,2]
[394216943,1763386240585,-151.0,0.00037881,2]
[394216944,1763386240595,-151.0,0.00037881,2]
[394216946,1763386240604,-151.0,0.00037881,2]
[394216949,1763386240613,-151.0,0.00037881,2]
[394216950,1763386240623,-151.0,0.00037881,2]
[394216953,1763386240632,-151.0,0.00037881,2]
[394216955,1763386240644,-151.0,0.00037881,2]
[394216957,1763386240653,-151.0,0.00037881,2]
[394216959,1763386240662,-151.0,0.00037881,2]
[394216961,1763386240671,-151.0,0.00037881,2]
[394216962,1763386240680,-151.0,0.00037881,2]
[394216965,1763386240689,-151.0,0.00037881,2]
[394216967,1763386240700,-151.0,0.00037881,2]
[394216969,1763386240709,-151.0,0.00037881,2]
[394216971,1763386240722,-151.0,0.00037881,2]
[394216973,1763386240731,-151.0,0.00037881,2]
[394216975,1763386240740,-2560.28129369,0.00037883,2]
[394216976,1763386240749,-28544.5775843,0.00037884,4]
[394216977,1763386240759,-167.89651,0.00037888,30]
[394216978,1763386240768,-151.0,0.00037891,14]
[394216979,1763386240776,-500.0,0.00037893,2]
[394216980,1763386240785,-500.0,0.00037893,2]
[394216981,1763386240794,-500.0,0.00037893,2]
[394216982,1763386240803,-217.85376733,0.00037893,15]
[394216983,1763386240812,-500.0,0.00037893,15]
[394216985,1763386240821,-500.70471959,0.00037893,15]
[394216987,1763386240831,-451.28203804,0.00037893,15]
[394216989,1763386240840,-500.0,0.00037893,15]
[394216991,1763386240849,-500.0,0.00037893,15]
[394216993,1763386240859,-500.0,0.00037893,15]
[394216995,1763386240868,-500.0,0.00037893,15]
[394216997,1763386240878,-500.0,0.00037893,15]
[394216999,1763386240887,-500.0,0.00037893,15]
[394217001,1763386240895,-500.0,0.00037893,15]
[394217003,1763386240904,-500.0,0.00037893,15]
[394217005,1763386240914,-228356.620675,0.00037894,4]
[394217007,1763386240923,-111347.566035,0.00037894,4]
[394217008,1763386240932,-22269.513207,0.00037897,4]
[394217010,1763386240941,-150.0,0.00037898,7]
[394217012,1763386240951,-5000.0,0.000379,30]
[394217014,1763386240960,-303.5001203,0.000379,2]
[394217016,1763386240970,-246.1456331,0.00037901,2]
[394217018,1763386240980,-151.0,0.00037901,14]
[394217020,1763386240992,-151.0,0.00037901,14]
[394217022,1763386241002,-500.0,0.00037903,120]
[394217024,1763386241011,-500.0,0.00037903,120]
[394217026,1763386241020,-500.0,0.00037903,2]
[394217028,1763386241031,-546.09,0.00037903,2]
[394217031,1763386241041,-500.0,0.00037903,2]
[394217032,1763386241050,-156.80990936,0.00037903,30]
[394217034,1763386241062,-300.0,0.00037903,2]
[394217037,1763386241071,-300.0,0.00037903,2]
[394217039,1763386241080,-102850.11669981,0.00037904,2]
[394217049,1763386241168,-453.551289,0.00037904,2]
[394217283,1763386243693,-2246.56024518,0.00037904,2]
[394217322,1763386246243,-689.0,0.000313,5]
[394217324,1763386246253,-285.97539979,0.00037904,2]
[394217332,1763386246319,-37172.55984548,0.00037904,2]
[394217337,1763386246365,-2688.44623868,0.00037904,2]
[394217340,1763386246378,-552.50376001,0.00037904,2]
[394217342,1763386246397,-16158.84517,0.00037904,2]
[394217344,1763386246408,-500.0,0.00037904,2]
[394217360,1763386576915,373.1972374,0.000215,120]
[394217361,1763386576940,69.9027626,0.000215,120]
[394217362,1763386780942,96.18006817,0.00013699,2]
[394217363,1763386780973,183.54993183,0.00013699,2]
[394217364,1763386781154,279.73,0.00020187,2]
[394217365,1763387177307,704.51907717,0.00023104,20]
[394217366,1763387276820,587.2993888,0.0001799,2]
[394217378,1763387431371,-2895.1177145,0.00023104,20]
[394217381,1763387431388,-617.377,0.00023104,20]
[394217422,1763387432030,-1303.19519682,0.00023104,20]
[394217423,1763387432042,-1053.61701152,0.00023104,20]
[394217424,1763387432052,-190.28754906,0.00025414,2]
[394217425,1763387432084,-4.71245094,0.00025414,2]
[394217426,1763387432094,-250.0,0.00025414,2]
[394217427,1763387432104,-500.0,0.000263,2]
[394217428,1763387432115,-279.73,0.00026676,2]
[394217429,1763387432125,-438.0,0.00031041,2]
[394217430,1763387432134,-1600.0,0.00031681,3]
[394217431,1763387432144,-279.73,0.00033165,2]
[394217432,1763387432153,-441.12,0.00033928,2]
[394217433,1763387432163,-400.0,0.00033976,3]
[394217434,1763387432173,-6205.51,0.00033977,2]
[394217435,1763387432182,-161.13,0.00034048,2]
[394217436,1763387432191,-2000.0,0.00034227,3]
[394217437,1763387432201,-150.0,0.00034299,7]
[394217438,1763387432211,-150.0,0.00034299,7]
[394217439,1763387432220,-150.0,0.00034299,7]
[394217440,1763387432230,-150.0,0.00034299,7]
[394217441,1763387432239,-150.0,0.00034299,7]
[394217442,1763387432248,-150.0,0.00034299,7]
[394217443,1763387432258,-150.0,0.00034299,7]
[394217444,1763387432271,-150.0,0.00034299,7]
[394217445,1763387432281,-150.0,0.00034299,7]
[394217446,1763387432291,-150.0,0.00034299,7]
[394217447,1763387432300,-150.0,0.00034299,7]
[394217448,1763387432310,-77.09263737,0.00034299,7]
[394217449,1763387432324,-72.90736263,0.00034299,7]
[394217450,1763387432334,-150.0,0.00034299,7]
[394217451,1763387432344,-150.0,0.00034299,7]
[394217452,1763387432353,-150.0,0.00034299,7]
[394217453,1763387432363,-150.0,0.00034376,7]
[394217454,1763387432373,-150.0,0.00034383,7]
[394217455,1763387432383,-150.0,0.00034387,7]
[394217456,1763387432392,-150.0,0.00034411,7]
[394217457,1763387432404,-150.0,0.00034451,7]
[394217458,1763387432414,-150.0,0.00034454,7]
[394217459,1763387432424,-150.0,0.00034468,7]
[394217460,1763387432434,-150.0,0.00034472,7]
[394217461,1763387432443,-150.0,0.00034476,7]
[394217462,1763387432453,-150.0,0.00034489,7]
[394217463,1763387432462,-88.31597128,0.00034523,7]
[394217464,1763387432843,-61.68402872,0.00034523,7]
[394217465,1763387432853,-150.0,0.00034532,7]
[394217466,1763387432863,-860.0,0.00034532,2]
[394217467,1763387432872,-150.0,0.00034537,7]
[394217468,1763387432882,-150.0,0.00034553,7]
[394217469,1763387432891,-150.0,0.00034565,7]
[394217470,1763387432900,-150.0,0.00034604,7]
[394217471,1763387432910,-150.0,0.0003461,7]
[394217472,1763387432919,-150.0,0.00034635,7]
[394217473,1763387432929,-150.0,0.00034637,7]
[394217474,1763387432938,-150.0,0.00034645,7]
[394217475,1763387432948,-150.0,0.00034653,7]
[394217476,1763387432957,-150.0,0.0003468,7]
[394217477,1763387432966,-150.0,0.00034688,7]
[394217478,1763387432976,-150.0,0.00034722,7]
[394217479,1763387432985,-150.0,0.00034742,7]
[394217480,1763387432995,-150.0,0.00034747,7]
[394217481,1763387433005,-150.0,0.00034756,7]
[394217482,1763387433016,-150.0,0.00034765,7]
[394217483,1763387433026,-280.0,0.00034769,2]
[394217484,1763387433036,-150.0,0.00034775,7]
[394217485,1763387433046,-150.0,0.00034807,7]
[394217486,1763387433056,-150.0,0.00034818,7]
[394217487,1763387433065,-800.0,0.00034819,2]
[394217488,1763387433076,-207.27,0.00034826,2]
[394217489,1763387433086,-150.0,0.0003483,7]
[394217490,1763387433096,-150.0,0.00034843,7]
[394217491,1763387433107,-162.29,0.00034851,2]
[394217492,1763387433118,-280.0,0.00034856,2]
[394217493,1763387433127,-150.0,0.00034859,7]
[394217494,1763387433137,-150.0,0.0003487,7]
[394217495,1763387433146,-150.0,0.00034891,7]
[394217496,1763387433156,-800.0,0.00034906,2]
[394217497,1763387433166,-150.0,0.00034908,7]
[394217498,1763387433176,-150.0,0.00034919,7]
[394217499,1763387433188,-150.0,0.00034921,7]
[394217500,1763387433197,-150.0,0.00034934,7]
[394217501,1763387433207,-280.0,0.00034943,2]
[394217502,1763387433217,-150.0,0.00034971,7]
[394217503,1763387433227,-150.0,0.00034976,7]
[394217504,1763387433236,-150.0,0.00034992,7]
[394217505,1763387433246,-800.0,0.00034993,2]
[394217506,1763387433255,-150.0,0.00034999,7]
[394217507,1763387433267,-150.0,0.00035008,7]
[394217508,1763387433276,-150.0,0.00035013,7]
[394217509,1763387433286,-280.0,0.0003503,2]
[394217510,1763387433296,-500.0,0.00035041,2]
[394217511,1763387433305,-150.0,0.00035061,7]
[394217512,1763387433315,-150.0,0.00035061,7]
[394217513,1763387433325,-150.0,0.00035061,7]
[394217514,1763387433334,-150.0,0.00035061,7]
[394217515,1763387433344,-150.0,0.00035061,7]
[394217516,1763387433354,-150.0,0.00035076,7]
[394217517,1763387433363,-329.33152205,0.0003508,2]
[394217523,1763387437509,-470.66847795,0.0003508,2]
[394217524,1763387437521,-150.0,0.00035083,7]
[394217525,1763387437531,-150.0,0.00035096,7]
[394217526,1763387437540,-300.00484204,0.00035117,2]
[394217527,1763387437550,-150.0,0.00035146,7]
[394217528,1763387437559,-150.0,0.00035154,7]
[394217529,1763387437569,-150.0,0.00035165,7]
[394217530,1763387437578,-800.0,0.00035167,2]
[394217532,1763387437587,-150.0,0.00035185,7]
[394217534,1763387437596,-150.0,0.00035195,7]
[394217536,1763387437606,-150.0,0.00035213,7]
[394217538,1763387437615,-150.0,0.0003523,7]
[394217540,1763387437624,-150.0,0.00035232,7]
[394217542,1763387437633,-150.0,0.00035251,7]
[394217544,1763387437642,-150.0,0.00035251,7]
[394217546,1763387437651,-150.0,0.00035274,7]
[394217547,1763387437660,-150.0,0.00035307,7]
[394217548,1763387437669,-150.0,0.0003531,7]
[394217549,1763387437678,-150.0,0.00035315,7]
[394217550,1763387437687,-150.0,0.00035338,7]
[394217551,1763387437697,-150.0,0.00035362,7]
[394217552,1763387437706,-150.0,0.00035366,7]
[394217553,1763387437715,-150.0,0.00035387,7]
[394217554,1763387437724,-150.0,0.000354,7]
[394217556,1763387437733,-150.0,0.0003542,7]
[394217558,1763387437742,-150.0,0.00035442,7]
[394217560,1763387437751,-150.0,0.00035451,7]
[394217562,1763387437760,-150.0,0.00035465,7]
[394217563,1763387437771,-150.0,0.00035484,7]
[394217566,1763387437780,-150.0,0.0003549,7]
[394217568,1763387437790,-150.0,0.00035511,7]
[394217570,1763387437799,-150.0,0.00035518,7]
[394217572,1763387437808,-150.0,0.00035532,7]
[394217574,1763387437817,-150.0,0.00035539,7]
[394217575,1763387437827,-150.0,0.00035543,7]
[394217578,1763387437836,-150.0,0.00035569,7]
[394217580,1763387437845,-150.0,0.00035569,7]
[394217581,1763387437854,-300.0,0.00035616,5]
[394217583,1763387437863,-150.0,0.00035621,7]
[394217585,1763387437873,-150.0,0.00035628,7]
[394217588,1763387437883,-150.0,0.00035632,7]
[394217590,1763387437892,-150.0,0.00035644,7]
[394217591,1763387437901,-150.0,0.00035654,7]
[394217593,1763387437911,-150.0,0.00035671,7]
[394217595,1763387437919,-150.0,0.00035684,7]
[394217597,1763387437929,-150.0,0.00035699,7]
[394217600,1763387437938,-150.0,0.00035717,7]
[394217602,1763387437948,-150.0,0.00035728,7]
[394217604,1763387437957,-150.0,0.00035738,7]
[394217606,1763387437967,-150.0,0.00035756,7]
[394217607,1763387437976,-150.0,0.00035776,7]
[394217609,1763387437985,-150.0,0.00035805,7]
[394217611,1763387437995,-150.0,0.00035823,7]
[394217613,1763387438004,-150.0,0.00035823,7]
[394217615,1763387438013,-150.0,0.00035823,7]
[394217618,1763387438024,-150.0,0.00035823,7]
[394217620,1763387438034,-150.0,0.00035823,7]
[394217621,1763387438043,-150.0,0.00035854,7]
[394217623,1763387438053,-150.0,0.00035858,7]
[394217626,1763387438064,-152.0,0.00035861,3]
[394217627,1763387438074,-150.0,0.00035868,7]
[394217629,1763387438083,-150.0,0.00035894,7]
[394217631,1763387438094,-150.0,0.00035908,7]
[394217633,1763387438103,-150.0,0.00035932,7]
[394217635,1763387438114,-52.93627182,0.00035966,7]
[394217638,1763387438127,-97.06372818,0.00035966,7]
[394217640,1763387438136,-150.0,0.00035975,7]
[394217642,1763387438145,-150.0,0.0003598,7]
[394217644,1763387438155,-103.72093369,0.00035983,7]
[394217646,1763387438167,-46.27906631,0.00035983,7]
[394217648,1763387438176,-150.0,0.00035992,7]
[394217650,1763387438186,-146.30730348,0.00036,2]
[394217652,1763387438198,-858.32269652,0.00036,2]
[394217654,1763387438209,-300.0,0.00036,2]
[394217656,1763387438219,-160.0,0.00036,60]
[394217658,1763387438228,-224.04291797,0.00036006,5]
[394217660,1763387438238,-500.0,0.00036006,5]
[394217662,1763387438248,-150.10872006,0.00036006,5]
[394217665,1763387438258,-150.0,0.0003601,7]
[394217667,1763387438270,-150.0,0.00036014,7]
[394217669,1763387438280,-150.0,0.00036031,7]
[394217671,1763387438290,-150.0,0.00036071,7]
[394217672,1763387438299,-150.0,0.00036077,7]
[394217674,1763387438309,-150.0,0.00036087,7]
[394217676,1763387438320,-150.0,0.00036092,7]
[394217678,1763387438329,-150.0,0.00036128,7]
[394217680,1763387438338,-207.27,0.00036132,2]
[394217682,1763387438348,-150.66,0.00036138,120]
[394217684,1763387438359,-150.0,0.0003616,7]
[394217686,1763387438368,-150.0,0.00036162,7]